fUST/lending_fUST_20241103
["ID","MTS","AMOUNT","RATE_DAILY","PERIOD"]
[341192482,1730587839452,-500.0,0.0003041,4]
[341192483,1730587839464,-500.0,0.0003041,4]
[341192484,1730587839473,-500.0,0.0003041,4]
[341192485,1730587839482,-500.0,0.0003041,4]
[341192486,1730587839492,-496.17,0.0003041,4]
[341192487,1730587839502,-500.0,0.0003041,4]
[341192488,1730587839512,-500.0,0.0003041,4]
[341192489,1730587839521,-500.0,0.0003041,4]
[341192490,1730587839530,-500.0,0.0003041,4]
[341192491,1730587839540,-500.0,0.0003041,4]
[341192492,1730587839549,-532.63,0.0003041,4]
[341192493,1730587839560,-1112.28922864,0.0003041,3]
[341192520,1730587843383,-76.20077136,0.0003041,3]
[341192521,1730587843393,-572.36,0.0003041,4]
[341192522,1730587843402,-500.0,0.0003041,4]
[341192523,1730587843411,-186.567927,0.00030554,2]
[341192524,1730587843420,-295.380737,0.00030554,2]
[341192525,1730587843430,-447.763021,0.00030554,2]
[341192526,1730587843439,-500.0,0.00030626,5]
[341192527,1730587843450,-470.26268647,0.00030656,2]
[341192528,1730587843459,-500.0,0.00030684,4]
[341192529,1730587843469,-500.0,0.00030684,4]
[341192530,1730587843478,-500.0,0.00030684,4]
[341192531,1730587843487,-500.0,0.00030684,4]
[341192532,1730587843497,-500.0,0.00030684,4]
[341192533,1730587843507,-500.0,0.00030684,4]
[341192534,1730587843517,-500.0,0.00030684,4]
[341192535,1730587843527,-500.0,0.00030684,4]
[341192536,1730587843536,-295.60550543,0.00030684,4]
[341192537,1730587843547,-532.63,0.00030684,4]
[341192538,1730587843556,-1188.49,0.00030684,3]
[341192539,1730587843566,-572.36,0.00030684,4]
[341192540,1730587843577,-500.0,0.00030684,4]
[341192541,1730587843590,-295.380737,0.00030926,2]
[341192542,1730587843601,-447.763021,0.00030926,2]
[341192543,1730587843612,-238.6,0.00030928,3]
[341192544,1730587843622,-477.19,0.00030938,3]
[341192545,1730587843636,-7155.12,0.00030938,10]
[341192546,1730587843646,-5962.6,0.00030938,10]
[341192547,1730587843657,-715.8,0.00030948,3]
[341192548,1730587843667,-982.26773731,0.00030948,10]
[341192549,1730587843679,-7603.88226269,0.00030948,10]
[341192550,1730587843688,-170.27,0.00030958,4]
[341192551,1730587843800,-296.89,0.00030958,4]
[341192552,1730587843814,-313.48535367,0.00030958,4]
[341192558,1730587846280,-186.51464633,0.00030958,4]
[341192559,1730587846296,-75.79155125,0.00030958,4]
[341192560,1730587846316,-424.20844875,0.00030958,4]
[341192561,1730587846329,-36.64610128,0.00030958,4]
[341192562,1730588273039,163.869242,0.00013973,2]
[341192563,1730588404609,500.0,0.0001,2]
[341192564,1730588404963,500.0,0.0001,2]
[341192565,1730588405344,500.0,0.0001,2]
[341192566,1730588405739,500.0,0.0001,2]
[341192567,1730588636738,3690.04,0.00020184,2]
[341192568,1730588680784,872.0,0.00020184,2]
[341192583,1730588886759,161.356676,0.00013973,2]
[341192614,1730589032498,-165.0,0.00023,2]
[341192615,1730589032508,-165.0,0.00024164,2]
[341192617,1730589032520,-300.0,0.00026901,2]
[341192618,1730589032530,-300.0,0.00026901,2]
[341192619,1730589032541,-2012.89511547,0.00026902,2]
[341192620,1730589032554,-22887.10488453,0.00026902,2]
[341192621,1730589032566,-585.59656686,0.00028357,2]
[341192657,1730589046468,-345.00673985,0.00028357,2]
[341192658,1730589129150,5005.02,0.0002018,2]
[341192676,1730590121451,1333.61339215,0.00033552,30]
[341192678,1730590126246,22977.23689957,0.00014,2]
[341192679,1730590126641,18803.46474308,0.0001,2]
[341192680,1730590130381,1000.0,0.0001,2]
[341192681,1730590147309,161.35039,0.00013973,2]
[341192682,1730590182693,500.0,0.00018267,2]
[341192683,1730590182742,500.0,0.00019637,2]
[341192719,1730590232649,-300.0,0.00020376,2]
[341192721,1730590232659,-300.0,0.00020376,2]
[341192723,1730590232669,-20019.01387165,0.00020377,2]
[341192725,1730590232679,-5036.22079866,0.00021,2]
[341192770,1730590238734,-5207.54049174,0.00021,2]
[341192772,1730590238744,-1475.03927815,0.00021,2]
[341192774,1730590238754,-420.0,0.00022179,2]
[341192776,1730590238764,-181.62412177,0.00022414,2]
[341192863,1730590243627,-238.37587823,0.00022414,2]
[341192866,1730590243642,-142.31640574,0.00023625,2]
[341192897,1730590266262,165.784,0.0001835,2]
[341192898,1730590266808,166.045,0.0001908,3]
[341192899,1730590667241,161.312685,0.00013973,2]
[341192905,1730591264691,161.35039,0.00013973,2]
[341192974,1730591431859,-250.0,0.00021941,2]
[341192975,1730591431870,-250.0,0.00022002,2]
[341192976,1730591431879,-250.0,0.00022062,2]
[341192977,1730591431889,-250.0,0.00022122,2]
[341192978,1730591431898,-250.0,0.00022182,2]
[341192979,1730591431907,-166.666666,0.00022207,2]
[341192980,1730591431917,-250.0,0.00022242,2]
[341192981,1730591432036,-250.0,0.00022302,2]
[341192982,1730591432051,-300.0,0.00022308,2]
[341192983,1730591432060,-300.0,0.00022308,2]
[341192984,1730591432069,-1812.87873586,0.00022309,2]
[341193032,1730591446177,-1205.42449019,0.00022309,2]
[341193033,1730591446319,-1544.44300055,0.00022309,2]
[341193035,1730591916064,161.344104,0.00013973,2]
[341193036,1730591936331,300.874,0.00020184,2]
[341193037,1730592003791,500.0,0.0001,2]
[341193038,1730592004125,500.0,0.0001,2]
[341193039,1730592004489,500.0,0.0001,2]
[341193040,1730592004895,168.48494927,0.0001,2]
[341193085,1730592631847,-300.0,0.00020264,2]
[341193087,1730592631856,-300.0,0.00020264,2]
[341193089,1730592631866,-24900.0,0.00020265,2]
[341193091,1730592631875,-208.370474,0.00020563,2]
[341193094,1730592631885,-250.0,0.00020675,2]
[341193096,1730592631895,-1614.55215653,0.00020688,2]
[341193097,1730592631904,-250.0,0.00020732,2]
[341193099,1730592631914,-5922.3422156,0.00020753,2]
[341193101,1730592631923,-250.0,0.00020788,2]
[341193103,1730592631932,-250.0,0.00020845,2]
[341193105,1730592631943,-250.0,0.00020902,2]
[341193107,1730592631953,-250.0,0.00020959,2]
[341193109,1730592631962,-250.0,0.00021015,2]
[341193111,1730592631971,-250.0,0.00021072,2]
[341193113,1730592631981,-250.0,0.00021129,2]
[341193115,1730592631991,-250.0,0.00021185,2]
[341193117,1730592632002,-250.0,0.00021242,2]
[341193119,1730592632012,-250.0,0.00021299,2]
[341193121,1730592632021,-250.0,0.00021356,2]
[341193123,1730592632030,-250.0,0.00021412,2]
[341193125,1730592632039,-250.0,0.00021469,2]
[341193127,1730592632049,-174.775793,0.00021485,2]
[341193129,1730592632058,-250.0,0.00021526,2]
[341193131,1730592632067,-250.0,0.00021582,2]
[341193133,1730592632079,-250.0,0.00021639,2]
[341193135,1730592632096,-250.0,0.00021696,2]
[341193144,1730592632237,-250.0,0.00021752,2]
[341193145,1730592632248,-500.0,0.00021773,2]
[341193146,1730592632260,-175.34194163,0.00021818,2]
[341193147,1730592632272,-166.666666,0.00021918,2]
[341193148,1730592632291,-217.22119817,0.0002203,2]
[341193149,1730592632301,-257.34907067,0.0002203,2]
[341193165,1730592638068,-333.02874829,0.00022054,2]
[341193166,1730592638078,-161.12636618,0.00022054,2]
[341193188,1730592645923,-147.12773649,0.00022054,2]
[341193189,1730592645934,-1000.1700289,0.00022055,2]
[341193190,1730592645944,-420.0,0.0002206,2]
[341193191,1730592645954,-206.19810864,0.0002209,2]
[341193192,1730592645963,-1226.50412597,0.00022091,2]
[341193194,1730592925728,161.344104,0.00013973,2]
[341193206,1730593722247,2667.2801411,0.00033543,30]
[341193241,1730593838173,-1477.17040474,0.00020377,2]
[341193242,1730593838229,-953.84113845,0.00020377,2]
[341193245,1730593840044,-1392.07151922,0.00020377,2]
[341193247,1730593843140,-5382.54638151,0.00020377,2]
[341193248,1730593843150,-197.361463,0.00020424,2]
[341193249,1730593843160,-250.0,0.00021025,2]
[341193250,1730593843170,-300.0,0.00021082,2]
[341193251,1730593843180,-300.0,0.00021082,2]
[341193252,1730593843189,-250.0,0.00021083,2]
[341193253,1730593843200,-250.0,0.0002114,2]
[341193254,1730593843210,-250.0,0.00021198,2]
[341193255,1730593843221,-250.0,0.00021256,2]
[341193256,1730593843232,-250.0,0.00021313,2]
[341193257,1730593843243,-250.0,0.00021371,2]
[341193258,1730593843254,-250.0,0.00021429,2]
[341193259,1730593843265,-250.0,0.00021486,2]
[341193260,1730593843276,-5166.04356705,0.00021511,2]
[341193261,1730593843286,-250.0,0.00021544,2]
[341193262,1730593843296,-250.0,0.00021602,2]
[341193264,1730593843305,-250.0,0.00021659,2]
[341193265,1730593843314,-1511.07914769,0.00021675,2]
[341193267,1730593843324,-2245.20440868,0.00021701,2]
[341193273,1730593902279,161.344104,0.00013973,2]
[341193274,1730594550542,161.344104,0.00013973,2]
[341193418,1730595046332,-300.0,0.00021038,2]
[341193419,1730595046341,-300.0,0.00021038,2]
[341193420,1730595046351,-223.79257606,0.00021039,2]
[341193421,1730595046363,-297.07324744,0.00021039,2]
[341193422,1730595046373,-2971.9781349,0.00021039,2]
[341193423,1730595600089,161.344104,0.00013973,2]
[341193431,1730596210468,161.344104,0.00013973,2]
[341193447,1730596238732,-300.0,0.00020236,2]
[341193448,1730596238743,-300.0,0.00020236,2]
[341193449,1730596238753,-24900.0,0.00020237,2]
[341193450,1730596238764,-197.3614633,0.00020406,2]
[341193451,1730596238775,-2920.83915838,0.00020694,2]
[341193452,1730596238787,-163.645106,0.0002086,2]
[341193453,1730596238799,-163.645106,0.0002087,2]
[341193454,1730596238810,-163.645106,0.00020879,2]
[341193455,1730596238821,-163.645106,0.00020889,2]
[341193456,1730596238836,-163.645106,0.00020898,2]
[341193457,1730596238847,-163.645106,0.00020908,2]
[341193458,1730596238858,-163.645106,0.00020917,2]
[341193459,1730596238868,-163.645106,0.00020927,2]
[341193460,1730596238880,-163.645106,0.00020936,2]
[341193461,1730596238893,-163.645106,0.00020946,2]
[341193462,1730596238904,-163.645106,0.00020955,2]
[341193463,1730596238914,-163.645106,0.00020965,2]
[341193464,1730596238925,-171.615456,0.00021017,2]
[341193465,1730596238936,-171.615456,0.00021075,2]
[341193466,1730596238947,-171.615456,0.00021132,2]
[341193467,1730596238959,-171.615456,0.0002119,2]
[341193468,1730596238970,-171.615456,0.00021247,2]
[341193469,1730596238980,-171.615456,0.00021305,2]
[341193470,1730596238991,-175.34194163,0.00021321,2]
[341193471,1730596239001,-171.615456,0.00021363,2]
[341193472,1730596239012,-171.615456,0.0002142,2]
[341193473,1730596239023,-171.615456,0.00021478,2]
[341193474,1730596239034,-171.615456,0.00021536,2]
[341193475,1730596239045,-171.615456,0.00021593,2]
[341193476,1730596239057,-171.615456,0.00021651,2]
[341193477,1730596239068,-171.615456,0.00021709,2]
[341193478,1730596239078,-171.615456,0.00021766,2]
[341193479,1730596239088,-171.615456,0.00021824,2]
[341193480,1730596239099,-500.0,0.0002185,2]
[341193481,1730596239109,-171.615456,0.00021882,2]
[341193482,1730596239119,-500.0,0.0002189,2]
[341193483,1730596239131,-183.02041543,0.00021913,2]
[341193484,1730596239145,-500.0,0.00021913,2]
[341193485,1730596239155,-500.0,0.00021913,2]
[341193486,1730596239167,-500.0,0.00021913,2]
[341193487,1730596239179,-500.0,0.00021913,2]
[341193488,1730596239195,-500.0,0.00021913,2]
[341193489,1730596239205,-500.0,0.00021913,2]
[341193490,1730596239216,-500.0,0.00021913,2]
[341193491,1730596239227,-500.0,0.00021913,2]
[341193492,1730596239237,-500.0,0.00021913,2]
[341193493,1730596239246,-500.0,0.00021913,2]
[341193494,1730596239257,-500.0,0.00021913,2]
[341193495,1730596239268,-500.0,0.00021913,2]
[341193496,1730596239278,-500.0,0.00021913,2]
[341193497,1730596239290,-500.0,0.00021913,2]
[341193498,1730596239301,-500.0,0.00021913,2]
[341193499,1730596239311,-500.0,0.00021913,2]
[341193500,1730596239321,-500.0,0.00021913,2]
[341193501,1730596239332,-500.0,0.00021913,2]
[341193502,1730596239343,-372.34964648,0.00021913,2]
[341193503,1730596239354,-500.0,0.00021913,2]
[341193504,1730596239364,-500.0,0.00021913,2]
[341193505,1730596239376,-500.0,0.00021913,2]
[341193506,1730596239391,-500.0,0.00021913,2]
[341193507,1730596239401,-500.0,0.00021913,2]
[341193508,1730596239412,-205.50273512,0.00021914,2]
[341193509,1730596239422,-999.9099743,0.00021915,2]
[341193510,1730596239436,-2086.17124878,0.00021917,2]
[341193511,1730596239451,-2913.82875122,0.00021917,2]
[341193512,1730596239462,-2717.7120678,0.00021917,2]
[341193513,1730596239473,-166.666666,0.00021918,2]
[341193514,1730596239483,-171.615456,0.00021939,2]
[341193515,1730596239494,-171.615456,0.00021997,2]
[341193516,1730596239504,-420.0,0.0002203,2]
[341193517,1730596239514,-171.615456,0.00022055,2]
[341193518,1730596239525,-187.94539506,0.0002209,2]
[341193519,1730596239535,-1351.2790588,0.0002209,2]
[341193520,1730596239546,-171.615456,0.00022112,2]
[341193521,1730596239557,-420.0,0.0002226,2]
[341193522,1730596239567,-166.666666,0.00022431,2]
[341193523,1730596239578,-153.0,0.00022932,2]
[341193524,1730596239588,-153.0,0.00022932,2]
[341193525,1730596239599,-166.666666,0.00022944,2]
[341193526,1730596239609,-1172.0,0.00023,2]
[341193527,1730596239620,-500.0,0.0002322,2]
[341193528,1730596239637,-1074.21170259,0.0002326,2]
[341193529,1730596239648,-166.666666,0.00023456,2]
[341193530,1730596239658,-153.0,0.00023603,2]
[341193531,1730596239669,-153.0,0.00023753,2]
[341193532,1730596239679,-175.64424,0.00023836,2]
[341193533,1730596239689,-166.666666,0.00023969,2]
[341193534,1730596239799,-587.0,0.00023982,2]
[341193535,1730596239837,-166.666666,0.00024482,2]
[341193536,1730596239847,-587.0,0.00024486,2]
[341193537,1730596239856,-211.079098,0.00024575,2]
[341193538,1730596239866,-211.079098,0.00024575,2]
[341193539,1730596239877,-211.079098,0.00024575,2]
[341193540,1730596239886,-211.079098,0.00024575,2]
[341193541,1730596239895,-211.079098,0.00024575,2]
[341193542,1730596239904,-211.079098,0.00024575,2]
[341193543,1730596239914,-211.079098,0.00024575,2]
[341193544,1730596239923,-422.0540971,0.00024575,2]
[341193545,1730596239933,-211.079098,0.00024575,2]
[341193546,1730596239942,-211.079098,0.00024575,2]
[341193547,1730596239951,-418.2959354,0.00024575,2]
[341193548,1730596239960,-660.0,0.00024658,2]
[341193549,1730596239969,-167.0,0.00025,2]
[341193550,1730596239979,-5286.51823248,0.000252,2]
[341193552,1730596239988,-167.0,0.0002589,2]
[341193554,1730596239998,-823.0,0.00026107,2]
[341193557,1730596240007,-160.0,0.00026457,3]
[341193559,1730596240018,-528.0,0.000265,2]
[341193561,1730596240028,-2393.0,0.000265,2]
[341193563,1730596240037,-1156.0,0.000265,2]
[341193566,1730596240049,-160.0,0.0002691,4]
[341193568,1730596240058,-823.0,0.00026934,2]
[341193570,1730596240067,-160.0,0.00027364,5]
[341193572,1730596240076,-160.0,0.00027817,6]
[341193573,1730596240086,-160.0,0.00027817,5]
[341193574,1730596240095,-4089.70861129,0.00027852,2]
[341193575,1730596240104,-151.949325,0.00029035,2]
[341193576,1730596240113,-151.949325,0.00029035,2]
[341193577,1730596240123,-528.0,0.000295,2]
[341193578,1730596240131,-2393.0,0.000295,2]
[341193579,1730596240141,-1140.0,0.000295,2]
[341193580,1730596240150,-450.0,0.00029628,2]
[341193581,1730596240159,-174.9014689,0.00029753,2]
[341193582,1730596240168,-153.0,0.00029753,2]
[341193583,1730596240179,-153.0,0.00029753,2]
[341193584,1730596240194,-153.0,0.00029753,2]
[341193585,1730596240204,-182.224548,0.00029809,2]
[341193586,1730596240213,-171.226483,0.00029809,2]
[341193587,1730596240223,-172.318092,0.00029809,2]
[341193588,1730596240233,-203.386361,0.00029809,2]
[341193589,1730596240242,-5265.06,0.0002999,10]
[341193590,1730596240252,-177.87,0.0003,2]
[341193591,1730596240262,-154.5955,0.0003,2]
[341193592,1730596240271,-282.0,0.0003,2]
[341193593,1730596240280,-19167.92,0.0003,30]
[341193594,1730596240289,-478.06,0.00030095,3]
[341193595,1730596240299,-318.68,0.00030105,3]
[341193596,1730596240308,-159.34,0.00030105,3]
[341193597,1730596240317,-598.51,0.00030135,2]
[341193598,1730596240326,-598.51,0.00030135,2]
[341193599,1730596240335,-598.51,0.00030135,2]
[341193600,1730596240344,-598.51,0.00030135,2]
[341193601,1730596240354,-598.51,0.00030135,2]
[341193602,1730596240363,-598.51,0.00030135,2]
[341193603,1730596240373,-598.51,0.00030135,2]
[341193604,1730596240383,-598.51,0.00030135,2]
[341193605,1730596240391,-598.51,0.00030135,2]
[341193606,1730596240400,-214.09258691,0.00030136,4]
[341193607,1730596240410,-500.0,0.00030136,4]
[341193608,1730596240419,-540.01,0.00030136,4]
[341193609,1730596240428,-504.54564885,0.00030136,4]
[341193610,1730596240438,-500.0,0.00030136,4]
[341193611,1730596240447,-509.70821952,0.00030136,4]
[341193612,1730596240456,-504.09053172,0.00030136,4]
[341193613,1730596240466,-500.0,0.00030136,4]
[341193615,1730596240476,-504.21772547,0.00030136,4]
[341193617,1730596240485,-503.74638489,0.00030136,4]
[341193618,1730596240494,-309.96815693,0.00030136,4]
[341193619,1730596240504,-500.0,0.00030136,4]
[341193620,1730596240513,-500.0,0.00030136,4]
[341193621,1730596240523,-503.46853016,0.00030136,4]
[341193622,1730596240532,-502.31875804,0.00030136,4]
[341193623,1730596240541,-507.96212946,0.00030136,4]
[341193624,1730596240551,-500.0,0.00030136,4]
[341193625,1730596240560,-517.32462203,0.00030136,4]
[341193626,1730596240569,-509.35609282,0.00030136,4]
[341193627,1730596240579,-534.08530848,0.00030136,4]
[341193628,1730596240588,-502.36,0.00030136,4]
[341193629,1730596240597,-500.0,0.00030136,4]
[341193630,1730596240606,-500.0,0.00030136,4]
[341193631,1730596240615,-575.3943405,0.00030136,4]
[341193632,1730596240625,-505.10921816,0.00030136,4]
[341193633,1730596240635,-506.13542504,0.00030136,4]
[341193634,1730596240645,-502.9226939,0.00030136,4]
[341193635,1730596240654,-510.45151973,0.00030136,4]
[341193636,1730596240663,-500.0,0.00030136,4]
[341193637,1730596240673,-500.0,0.00030136,4]
[341193638,1730596240684,-501.80573198,0.00030136,4]
[341193639,1730596240694,-505.08259611,0.00030136,4]
[341193640,1730596240704,-525.93083558,0.00030136,4]
[341193641,1730596240716,-500.0,0.00030136,4]
[341193642,1730596240727,-502.75457206,0.00030136,4]
[341193643,1730596240736,-502.88781345,0.00030136,4]
[341193644,1730596240746,-556.36680301,0.00030136,4]
[341193645,1730596240756,-503.39939992,0.00030136,4]
[341193646,1730596240765,-500.0,0.00030136,4]
[341193647,1730596240774,-500.0,0.00030136,4]
[341193648,1730596240784,-503.20493782,0.00030136,4]
[341193649,1730596240793,-500.0,0.00030136,4]
[341193650,1730596240802,-500.0,0.00030136,4]
[341193651,1730596240811,-504.25234068,0.00030136,4]
[341193652,1730596240820,-503.27999222,0.00030136,4]
[341193653,1730596240829,-500.0,0.00030136,4]
[341193654,1730596240839,-500.0,0.00030136,4]
[341193655,1730596240848,-501.52042175,0.00030136,4]
[341193656,1730596240857,-503.12091525,0.00030136,4]
[341193657,1730596240867,-551.03294633,0.00030136,4]
[341193658,1730596240876,-502.54014295,0.00030136,4]
[341193659,1730596240886,-500.8652799,0.00030136,4]
[341193660,1730596240896,-500.0,0.00030136,4]
[341193661,1730596240906,-500.0,0.00030136,4]
[341193662,1730596240916,-500.0,0.00030136,4]
[341193663,1730596240929,-500.0,0.00030136,4]
[341193664,1730596240940,-500.0,0.00030136,4]
[341193665,1730596240950,-501.47686767,0.00030136,4]
[341193666,1730596240960,-500.0,0.00030136,4]
[341193667,1730596240970,-507.7535469,0.00030136,4]
[341193668,1730596240980,-504.44007684,0.00030136,4]
[341193669,1730596240989,-500.0,0.00030136,4]
[341193670,1730596240998,-506.6005715,0.00030136,4]
[341193671,1730596241007,-502.043176,0.00030136,4]
[341193672,1730596241016,-500.0,0.00030136,4]
[341193673,1730596241025,-500.0,0.00030136,4]
[341193674,1730596241034,-500.0,0.00030136,4]
[341193675,1730596241044,-500.0,0.00030136,4]
[341193676,1730596241054,-500.0,0.00030136,4]
[341193677,1730596241064,-500.0,0.00030136,4]
[341193678,1730596241073,-500.0,0.00030136,4]
[341193679,1730596241082,-500.0,0.00030136,4]
[341193680,1730596241092,-500.0,0.00030136,4]
[341193681,1730596241101,-450.5902221,0.00030136,4]
[341193682,1730596241111,-502.15821078,0.00030136,4]
[341193683,1730596241120,-500.0,0.00030136,4]
[341193684,1730596241130,-231.28446534,0.00030136,4]
[341193685,1730596241139,-522.48846279,0.00030136,4]
[341193686,1730596241149,-500.0,0.00030136,4]
[341193687,1730596241158,-500.0,0.00030136,4]
[341193688,1730596241168,-500.62494733,0.00030136,4]
[341193689,1730596241178,-535.85,0.00030136,4]
[341193690,1730596241191,-502.86851587,0.00030136,4]
[341193691,1730596241200,-203.04,0.00030136,4]
[341193692,1730596241210,-525.40178242,0.00030136,4]
[341193693,1730596241223,-503.91404979,0.00030136,4]
[341193694,1730596241235,-500.0,0.00030136,4]
[341193695,1730596241246,-500.0,0.00030136,4]
[341193696,1730596241255,-500.0,0.00030136,4]
[341193697,1730596241266,-502.82668348,0.00030136,4]
[341193698,1730596241275,-502.42207869,0.00030136,4]
[341193699,1730596241285,-500.0,0.00030136,4]
[341193700,1730596241294,-506.69434694,0.00030136,4]
[341193701,1730596241304,-500.0,0.00030136,4]
[341193702,1730596241313,-500.0,0.00030136,2]
[341193703,1730596241323,-506.94783088,0.00030136,4]
[341193704,1730596241332,-507.13364005,0.00030136,4]
[341193705,1730596241341,-500.0,0.00030136,4]
[341193706,1730596241352,-500.0,0.00030136,4]
[341193707,1730596241361,-503.01544525,0.00030136,4]
[341193708,1730596241370,-502.02803273,0.00030136,4]
[341193709,1730596241381,-501.96793602,0.00030136,4]
[341193710,1730596241390,-503.8054565,0.00030136,4]
[341193711,1730596241401,-506.91093516,0.00030136,4]
[341193712,1730596241410,-500.0,0.00030136,4]
[341193713,1730596241419,-501.63015187,0.00030136,4]
[341193714,1730596241429,-500.0,0.00030136,4]
[341193715,1730596241438,-624.61284872,0.00030136,4]
[341193716,1730596241449,-550.31370914,0.00030136,4]
[341193717,1730596241459,-515.55438675,0.00030136,4]
[341193718,1730596241468,-502.22780148,0.00030136,4]
[341193719,1730596241478,-513.19792376,0.00030136,4]
[341193720,1730596241489,-501.10396312,0.00030136,4]
[341193721,1730596241498,-500.0,0.00030136,4]
[341193722,1730596241509,-505.00073285,0.00030136,4]
[341193723,1730596241518,-504.2290161,0.00030136,4]
[341193724,1730596241528,-500.0,0.00030136,4]
[341193725,1730596241537,-512.88,0.00030136,4]
[341193726,1730596241547,-503.05542006,0.00030136,4]
[341193727,1730596241557,-504.39075931,0.00030136,4]
[341193728,1730596241567,-501.89914596,0.00030136,4]
[341193729,1730596241576,-507.8983059,0.00030136,4]
[341193730,1730596241586,-500.0,0.00030136,4]
[341193731,1730596241595,-506.16095685,0.00030136,4]
[341193732,1730596241604,-501.20764664,0.00030136,4]
[341193733,1730596241614,-630.18,0.00030136,4]
[341193734,1730596241623,-502.28211053,0.00030136,4]
[341193735,1730596241633,-505.25061522,0.00030136,4]
[341193736,1730596241642,-503.57002046,0.00030136,4]
[341193737,1730596241651,-506.19708837,0.00030136,4]
[341193738,1730596241660,-500.0,0.00030136,4]
[341193739,1730596241670,-503.47938038,0.00030136,4]
[341193740,1730596241679,-500.0,0.00030136,4]
[341193741,1730596241689,-500.0,0.00030136,4]
[341193742,1730596241698,-500.0,0.00030136,4]
[341193743,1730596241708,-646.01325105,0.00030136,4]
[341193744,1730596241718,-500.0,0.00030136,4]
[341193745,1730596241727,-500.0,0.00030136,4]
[341193746,1730596241737,-500.0,0.00030136,4]
[341193747,1730596241747,-502.16637782,0.00030136,4]
[341193748,1730596241757,-500.0,0.00030136,4]
[341193749,1730596241766,-500.0,0.00030136,4]
[341193750,1730596241776,-501.03484354,0.00030136,4]
[341193751,1730596241786,-486.06746804,0.00030136,4]
[341193752,1730596241796,-500.0,0.00030136,4]
[341193753,1730596241807,-894.25,0.00030136,4]
[341193754,1730596241818,-507.06489251,0.00030136,4]
[341193755,1730596241829,-500.0,0.00030136,4]
[341193756,1730596241839,-500.0,0.00030136,4]
[341193757,1730596241848,-500.0,0.00030136,4]
[341193758,1730596241857,-500.0,0.00030136,4]
[341193759,1730596241866,-498.29379144,0.00030136,4]
[341193760,1730596241876,-500.0,0.00030136,4]
[341193761,1730596241886,-500.0,0.00030136,4]
[341193762,1730596241896,-533.1,0.00030136,4]
[341193763,1730596241905,-500.0,0.00030136,4]
[341193764,1730596241914,-570.91757128,0.00030136,4]
[341193765,1730596241923,-500.0,0.00030136,4]
[341193766,1730596241932,-609.21448865,0.00030136,4]
[341193767,1730596241942,-500.0,0.00030136,4]
[341193768,1730596241952,-500.0,0.00030136,4]
[341193769,1730596241961,-508.2449242,0.00030136,4]
[341193770,1730596241971,-500.0,0.00030136,4]
[341193771,1730596241980,-500.0,0.00030136,4]
[341193772,1730596241990,-500.0,0.00030136,4]
[341193773,1730596241999,-500.0,0.00030136,4]
[341193774,1730596242009,-502.70924997,0.00030136,4]
[341193775,1730596242018,-500.0,0.00030136,4]
[341193776,1730596242027,-500.0,0.00030136,4]
[341193777,1730596242036,-500.0,0.00030136,4]
[341193778,1730596242046,-502.71463981,0.00030136,4]
[341193779,1730596242056,-500.82308395,0.00030136,4]
[341193780,1730596242066,-500.0,0.00030136,4]
[341193781,1730596242075,-500.0,0.00030136,4]
[341193782,1730596242085,-503.71497699,0.00030136,4]